[Event "52nd Rilton Cup 2024-25"]
[Site "Stockholm"]
[Date "2025.01.05"]
[Round "9.1"]
[White "Costa, Leonardo"]
[Black "Amin, Bassem"]
[Result "1/2-1/2"]
[ECO "C67"]
[WhiteElo "2494"]
[BlackElo "2648"]
[Annotator "TA"]
[PlyCount "62"]
[EventDate "2024.12.23"]
[EventType "swiss"]
[EventCountry "SWE"]
[SourceTitle "playchess.com"]
[Source "ChessBase"]
[SourceQuality "1"]
[TimeControl "40/5400+30:1800+30"]

{[%evp 15,62,0,15,0,-2,-17,0,0,-8,-7,0,-13,0,-22,-12,-20,15,14,16,0,4,-65,41,0,0,0,169,103,201,204,444,188,161,153,333,325,356,254,256,258,228,-11,-11,-10,-11,-10,-10,-16,-20]} 1. e4 {[%emt 0:00:03]} e5 {[%emt 0:11:27]} 2. Nf3 {[%emt 0:00:04]} Nc6 {[%emt 0:00:12]} 3. Bb5 {[%emt 0:00:04]} Nf6 {[%emt 0:01:10]} 4. O-O {[%emt 0:00:05]} Nxe4 {[%emt 0:00:05]} 5. Re1 {[%emt 0:00:02]} Nd6 {[%emt 0:00:10]} 6. a4 {[%emt 0:00:06]} Be7 {[%emt 0:00:25]} 7. Nc3 {[%emt 0:00:04]} a6 {[%emt 0:00:17]} 8. Bf1 {[%emt 0:00:06]} Nf5 {[%emt 0:00:07]} 9. d4 {[%emt 0:00:05]} Nfxd4 {[%emt 0:00:14]} 10. Nxe5 {[%emt 0:00:05]} d6 {[%emt 0:00:07]} 11. Nxc6 {[%emt 0:00:05]} Nxc6 {[%emt 0:00:04]} 12. Nd5 {[%emt 0:00:04]} Be6 {[%emt 0:01:26]} 13. Nxe7 {[%emt 0:00:06]} Nxe7 {[%emt 0:12:36]} 14. b4 {[%emt 0:00:04]} O-O {[%emt 0:03:40]} 15. Bb2 {[%emt 0:00:04]} Nf5 {[%emt 0:06:14]} 16. Ra3 {[%emt 0:25:18]} c5 {[%emt 0:01:24]} 17. Rf3 {[%emt 0:12:53]} a5 {[%emt 0:14:28]} 18. Rf4 {[%emt 0:13:59]} (18. b5 $11) 18... Nd4 {[%emt 0:06:55]} (18... cxb4 19. Bd3 $18) ({Black should play} 18... axb4 $15 19. Bd3 g6) 19. Qh5 {[%emt 0:15:21]} (19. b5 {simplifies} d5 20. Bxd4 cxd4 21. Rxd4 Qf6 22. Re3) 19... axb4 {[%emt 0:04:19]} (19... Nxc2 $2 20. Bd3 g6 21. Qh6 $18) 20. Re3 {[%emt 0:00:03]} f5 $2 {[%emt 0:23:19]} (20... Nxc2 $2 21. Bd3 f5 (21... g6 22. Rh3 $18) 22. Rxe6 $18 (22. Bxc2 Rf6 $18)) (20... Rxa4 $11 {and Black stays safe.} 21. Rg3 Qd7 (21... Nxc2 22. Rxg7+ Kh8 23. Qxh7#)) 21. Rh4 {[%emt 0:16:56]} (21. Bxd4 $6 Bf7 22. Qxf5 cxd4 $16) (21. Rxd4 $18 Bf7 22. Qd1 cxd4 23. Qxd4) 21... Rf6 {[%emt 0:02:34]} (21... Qf6 $16) 22. Qxh7+ $18 {[%emt 0:01:43]} Kf8 $2 {[%emt 0:00:01]} (22... Kf7 23. Bxd4 cxd4) 23. Rxd4 {[%emt 0:06:38]} (23. Rg3 $142 Qe7 24. Qh8+ (24. Bxd4 cxd4 25. Qh8+ Bg8 $18) 24... Bg8 25. Rh7) 23... cxd4 $18 {[%emt 0:02:22]} (23... Rh6 24. Rxd6 Rxh7 (24... Qc7 $2 25. Qxh6 gxh6 26. Rdxe6 $18) 25. Rxd8+ Rxd8 26. Rxe6) 24. Bxd4 {[%emt 0:00:09]} (24. Rg3 Qc7 25. Qh8+ (25. Bxd4 Bg8 $16) 25... Bg8 26. Bxd4 (26. Bc4 Qxc4 27. Qxg7+ Ke8 $14) 26... Rf7) 24... Bg8 $2 {[%emt 0:02:47]} (24... Rc8 $16 25. h3 (25. Bxf6 Qxf6 26. Qh8+ Bg8 $14) (25. Rg3 Qe7 $18) 25... Qe7 26. Bxf6 Qxf6) 25. Qh5 $18 {[%emt 0:05:05]} Rf7 {[%emt 0:02:46]} 26. Bc4 {[%emt 0:00:26]} f4 {[%emt 0:02:17]} 27. Re4 {[%emt 0:00:34]} Ra5 {[%emt 0:01:26]} 28. Bxf7 $2 {[%emt 0:03:39]} (28. Bb5 $18 {[%cal Oh5g5] Qg5! is the strong threat.} b3 29. c4 (29. cxb3 Rxb5 30. axb5 Qc8 $18)) 28... Rxh5 $11 {[%emt 0:00:22]} 29. Bxh5 {[%emt 0:00:02]} g5 $1 {[%emt 0:01:02]} 30. Re8+ {[%emt 0:00:20]} Qxe8 {[%emt 0:00:02]} 31. Bxe8 {[%emt 0:00:14]} Kxe8 {[%emt 0:00:05]} 1/2-1/2

[Event "52nd Rilton Cup 2024-25"]
[Site "Stockholm"]
[Date "2025.01.05"]
[Round "9.2"]
[White "Livaic, Leon"]
[Black "Ilamparthi A R"]
[Result "1/2-1/2"]
[ECO "D41"]
[WhiteElo "2557"]
[BlackElo "2495"]
[Annotator "TA"]
[PlyCount "60"]
[EventDate "2024.12.23"]
[EventType "swiss"]
[EventCountry "SWE"]
[SourceTitle "playchess.com"]
[Source "ChessBase"]
[SourceQuality "1"]
[TimeControl "40/5400+30:1800+30"]

{[%evp 11,60,20,23,32,35,-4,33,25,34,29,33,22,16,0,0,0,0,0,0,0,0,0,0,0,0,0,0,0,0,-1,0,-6,0,-4,0,0,0,0,0,0,0,-10,-10,-16,-16,-16,-16,-16,-16,-16,-16]} 1. d4 {[%emt 0:00:04]} d5 {[%emt 0:00:09]} 2. c4 {[%emt 0:00:04]} e6 {[%emt 0:00:05]} 3. Nf3 {[%emt 0:00:04]} Nf6 {[%emt 0:00:06]} 4. Nc3 {[%emt 0:00:13]} c5 {[%emt 0:01:02]} 5. cxd5 {[%emt 0:00:32]} cxd4 {[%emt 0:00:08]} 6. Qxd4 {[%emt 0:00:09]} exd5 {[%emt 0:00:06]} 7. e4 {[%emt 0:00:48]} dxe4 {[%emt 0:00:08]} 8. Qxd8+ {[%emt 0:00:05]} Kxd8 {[%emt 0:00:06]} 9. Ng5 {[%emt 0:00:06][%csl LRe4,LRf7]} Be6 {[%emt 0:00:06]} 10. Nxe6+ {[%emt 0:00:41]} fxe6 {[%emt 0:00:04]} 11. Bc4 {[%emt 0:01:27]} Ke7 {[%emt 0:01:23]} 12. Bg5 {[%emt 0:01:58][%cal Oe1g1]} h6 {[%emt 0:05:36]} 13. Bxf6+ {[%emt 0:00:42]} gxf6 {[%emt 0:00:09]} 14. Nxe4 {[%emt 0:00:04]} Nd7 $1 {[%emt 0:03:39]} 15. Bb5 {[%emt 0:16:34]} f5 {[%emt 0:11:56]} 16. Bxd7 {[%emt 0:10:06]} Kxd7 {[%emt 0:15:34]} 17. O-O-O+ {[%emt 0:01:38]} Ke7 {[%emt 0:02:29]} 18. Nd6 {[%emt 0:08:49]} b6 {[%emt 0:02:46]} 19. Rhe1 {[%emt 0:02:44]} Kf6 {[%emt 0:00:55]} 20. Re2 {[%emt 0:17:11][%cal Od1e1]} Rh7 {[%emt 0:12:21]} 21. f4 {[%emt 0:08:26]} Rc7+ {[%emt 0:10:58]} 22. Rc2 {[%emt 0:02:41]} Rxc2+ {[%emt 0:01:30]} 23. Kxc2 $11 {[%emt 0:00:03][%mdl 4096] Endgame KRB-KRN} Rd8 {[%emt 0:01:16]} 24. Ne4+ {[%emt 0:03:52]} Ke7 $1 {[%emt 0:00:25]} 25. Rxd8 {[%emt 0:00:30]} Kxd8 {[%emt 0:00:01] KB-KN} 26. Nd2 {[%emt 0:01:08]} Kd7 {[%emt 0:00:43]} 27. a4 {[%emt 0:06:58]} Kc6 {[%emt 0:01:08]} 28. Nf3 {[%emt 0:00:45]} Bg7 {[%emt 0:03:54]} 29. b3 $1 {[%emt 0:00:18]} Kd5 {[%emt 0:00:28] Strongly threatening ...Ke4.} 30. Kd3 {[%emt 0:00:03]} Bf6 {[%emt 0:03:07]} 1/2-1/2

[Event "52nd Rilton Cup 2024-25"]
[Site "Stockholm"]
[Date "2025.01.05"]
[Round "9.3"]
[White "Seemann, Jakub"]
[Black "Heberla, Bartlomiej"]
[Result "0-1"]
[ECO "B30"]
[WhiteElo "2488"]
[BlackElo "2498"]
[Annotator "TA"]
[PlyCount "62"]
[EventDate "2024.12.23"]
[EventType "swiss"]
[EventCountry "SWE"]
[SourceTitle "playchess.com"]
[Source "ChessBase"]
[SourceQuality "1"]
[TimeControl "40/5400+30:1800+30"]

{[%evp 9,62,18,25,17,18,23,9,-35,-22,-10,0,0,0,8,0,1,6,0,0,-4,47,0,0,0,0,0,-14,-16,0,0,0,0,0,0,21,-43,-38,-36,-5,-200,-200,-869,-864,-833,-420,-739,-420,-403,-391,-365,-355,-1922,-1922,-29995,-29996]} 1. e4 {[%emt 0:02:02]} c5 {[%emt 0:01:37]} 2. Nf3 {[%emt 0:00:04]} Nc6 {[%emt 0:00:04]} 3. Bb5 {[%emt 0:00:07]} e5 {[%emt 0:00:16]} 4. O-O {[%emt 0:01:46]} Bd6 {[%emt 0:00:05]} 5. d4 {[%emt 0:11:15]} Nxd4 {[%emt 0:00:34]} 6. Bc4 {[%emt 0:01:37]} h6 {[%emt 0:03:43] Dodges Ng5} 7. Nc3 {[%emt 0:10:38]} Nf6 {[%emt 0:27:13]} 8. a4 {[%emt 0:13:16]} Bc7 {[%emt 0:13:30]} 9. Nxd4 {[%emt 0:16:30]} cxd4 {[%emt 0:07:45]} 10. Nd5 {[%emt 0:00:13]} d6 $1 {[%emt 0:15:28]} 11. f4 {[%emt 0:09:24] White wants to play fxe5.} Be6 $1 {[%emt 0:00:08]} 12. fxe5 {[%emt 0:04:03]} dxe5 {[%emt 0:03:16][%cal Rf6d5]} 13. Nxf6+ {[%emt 0:01:37]} gxf6 {[%emt 0:00:03]} 14. Bb5+ {[%emt 0:01:43]} Bd7 {[%emt 0:04:44]} ({Black should try} 14... Kf8 $11) 15. Ra3 {[%emt 0:00:42]} (15. Bxd7+ $14 {is superior.} Qxd7 16. Rxf6) 15... Bxb5 $11 {[%emt 0:05:10]} 16. axb5 {[%emt 0:00:01]} Rg8 {[%emt 0:01:01]} 17. Rh3 {[%emt 0:06:52]} Qd7 {[%emt 0:05:26][%csl LRb5,LRh3]} 18. Qd3 {[%emt 0:00:19]} Bd8 $40 {[%emt 0:00:22][%mdl 128] Black has some attack.} 19. Bxh6 {[%emt 0:01:31]} Rc8 {[%emt 0:00:30][%cal Oc8c2]} 20. Rg3 {[%emt 0:13:27]} Rg6 {[%emt 0:01:39]} 21. Bd2 {[%emt 0:01:09] Black must now prevent h4.} Qe6 {[%emt 0:02:20]} 22. c3 {[%emt 0:02:28]} (22. h4 $11) 22... dxc3 $15 {[%emt 0:02:47]} 23. Bxc3 {[%emt 0:00:18]} Qc4 {[%emt 0:00:29]} 24. Rd1 $2 {[%emt 0:00:46]} (24. Re1 $1 $11) 24... Bb6+ $19 {[%emt 0:00:59]} 25. Kh1 $2 {[%emt 0:00:31]} (25. Kf1) 25... Rd8 {[%emt 0:00:00]} 26. Qb1 {[%emt 0:00:37]} Rxg3 {[%emt 0:00:39]} ({Not} 26... Qxb5 27. Rxd8+ Kxd8 28. Qd3+ Qd7 29. Rh3 $15) 27. hxg3 {[%emt 0:00:31]} (27. Rxd8+ $142 Kxd8 28. hxg3) 27... Qe2 {[%emt 0:00:14][%cal Re2h5]} (27... Qxb5 $2 28. Rxd8+ Kxd8 29. Qd1+ Ke7 30. Kh2 $19) 28. Rxd8+ {[%emt 0:00:06]} Kxd8 {[%emt 0:00:04]} 29. g4 {[%emt 0:00:26]} Ke8 {[%emt 0:01:02][%cal Ob6f2] aiming for ...Bf2!.} ({Don't play} 29... Qxg4 30. Qd3+ Ke8 31. Be1 $19) (29... Qxb5 $2 30. Qd1+ Ke7 31. Kh2 $17) 30. Kh2 $2 {[%emt 0:00:50]} (30. Qe1 Qxg4 (30... Qxb5 $2 31. Kh2 $19) 31. Kh2) 30... Bf2 {[%emt 0:01:42][%cal Oe2e3] ( -> ...Qe3!)} (30... Qxb5 $2 31. Qd1 $17) 31. b6 {[%emt 0:00:39]} Qe3 {[%emt 0:01:03]} 0-1

[Event "52nd Rilton Cup 2024-25"]
[Site "Stockholm"]
[Date "2025.01.05"]
[Round "9.4"]
[White "Kantans, Toms"]
[Black "Trost, Edvin"]
[Result "0-1"]
[ECO "B67"]
[WhiteElo "2486"]
[BlackElo "2443"]
[Annotator "TA"]
[PlyCount "94"]
[EventDate "2024.12.23"]
[EventType "swiss"]
[EventCountry "SWE"]
[SourceTitle "playchess.com"]
[Source "ChessBase"]
[SourceQuality "1"]
[TimeControl "40/5400+30:1800+30"]

{[%evp 33,93,23,20,0,27,0,5,0,0,0,41,-88,-56,-43,0,0,0,-87,0,0,0,-32,0,0,308,-33,-33,-147,10,7,489,187,168,-150,-14,-298,-170,-127,-228,-358,-317,-601,-603,-589,-598,-712,-560,-1466,-1325,-29983,-29984,-29989,-29990,-29990,-29991,-29995,-29996,-29996,-29997,-29997,-29994,-29999]} 1. e4 {[%emt 0:00:04]} c5 {[%emt 0:03:02]} 2. Nf3 {[%emt 0:00:23]} Nc6 {[%emt 0:00:36]} 3. d4 {[%emt 0:00:48]} cxd4 {[%emt 0:00:49]} 4. Nxd4 {[%emt 0:00:04]} Nf6 {[%emt 0:00:07]} 5. Nc3 {[%emt 0:00:05]} d6 {[%emt 0:00:04]} 6. Bg5 {[%emt 0:00:41]} e6 {[%emt 0:00:07]} 7. Qd2 {[%emt 0:01:10]} a6 {[%emt 0:00:13]} 8. O-O-O {[%emt 0:01:32]} Bd7 {[%emt 0:00:13]} 9. f3 {[%emt 0:08:18]} Nxd4 {[%emt 0:00:44]} 10. Qxd4 {[%emt 0:00:28]} Be7 {[%emt 0:00:10]} 11. h4 {[%emt 0:00:54]} Qc7 {[%emt 0:06:41]} 12. Kb1 {[%emt 0:10:40]} b5 {[%emt 0:00:23]} 13. Qd2 {[%emt 0:16:26]} h6 {[%emt 0:00:14]} 14. Be3 {[%emt 0:00:05]} h5 {[%emt 0:00:05]} 15. Bd3 {[%emt 0:09:41]} b4 {[%emt 0:08:15]} 16. Ne2 {[%emt 0:00:13]} a5 {[%emt 0:00:06]} 17. Bg5 {[%emt 0:07:56]} Rb8 {[%emt 0:11:07]} 18. Rc1 {[%emt 0:14:26]} a4 {[%emt 0:23:05]} 19. c4 {[%emt 0:00:12]} Bc6 {[%emt 0:06:11]} 20. Nf4 {[%emt 0:03:32]} Qd8 {[%emt 0:06:32]} 21. Rhe1 {[%emt 0:04:51]} Nd7 {[%emt 0:01:47] [#]} 22. Nd5 {[%emt 0:02:28]} (22. Bxe7 $1 $14 {keeps the upper hand.} Qxe7 23. Nd5 Bxd5 (23... exd5 $2 24. exd5 Ne5 25. dxc6 $18) 24. cxd5 (24. exd5 O-O $11)) 22... Bxg5 $1 $17 {[%emt 0:05:28]} (22... exd5 $2 23. exd5 f6 (23... Ne5 $2 24. Bxe7 Kxe7 25. f4 $18) 24. dxc6 $18 (24. Bg6+ Kf8 $18)) 23. hxg5 {[%emt 0:00:02]} a3 {[%emt 0:03:27]} (23... Nc5 $5) 24. b3 {[%emt 0:00:21]} (24. Nxb4 $2 Qa5 25. b3 (25. bxa3 $2 Qxa3 26. Ka1 Qxb4 $19) 25... Qxb4 $19 (25... Rxb4 $2 26. Rc3 $19)) 24... Ba8 $1 {[%emt 0:00:35]} 25. f4 {[%emt 0:09:29]} (25. Nxb4 $2 Qa5 26. Qc3 Rxb4 $19 (26... Qxb4 $2 27. Qxg7 Rf8 28. Re2 $19)) (25. Bc2 $11) 25... exd5 {[%emt 0:01:35]} (25... Nc5 $1 $17 26. f5 (26. Nxb4 $2 Qa5 $19) 26... exd5 27. exd5+ Kd7) 26. exd5+ $11 {[%emt 0:00:10]} Kf8 {[%emt 0:00:05]} 27. Re2 {[%emt 0:00:23]} Kg8 {[%emt 0:06:48]} 28. Rce1 {[%emt 0:00:06]} Qf8 $2 {[%emt 0:00:05][%mdl 8192]} (28... g6 $11) 29. Qe3 $2 {[%emt 0:06:56]} (29. Bf5 $18 Nc5 30. g6) 29... Bb7 $15 {[%emt 0:09:14]} 30. Qd4 {[%emt 0:02:33]} (30. Bc2 $1 $15) 30... Nc5 $2 {[%emt 0:01:40]} (30... Rd8 $1 $17 31. Bc2 (31. Re7 Bc8 $17) 31... g6) 31. f5 $11 {[%emt 0:00:23]} (31. Re7 {is interesting.} g6 32. f5 Rh7 33. Bc2) 31... h4 $2 {[%emt 0:03:01][%mdl 8192]} (31... Rd8 $1 $11) 32. Bc2 $2 {[%emt 0:00:18]} (32. f6) 32... Nd7 $18 {[%emt 0:02:03]} 33. Qf4 $2 {[%emt 0:00:47] [#]} (33. Re7 $18 Ne5 34. f6) 33... Ne5 {[%emt 0:01:01]} (33... Rh5 34. Re7 Ne5 35. f6 $11) (33... f6 $1 $17 {[%cal Rf6g5]} 34. g6 (34. Re7 Ne5 $19) 34... Rh6) 34. c5 $2 {[%emt 0:00:07][%mdl 8192]} (34. f6 $1 $11 {and White has nothing to worry.}) 34... Ba6 {[%emt 0:00:11]} ({Inferior is} 34... Bxd5 35. cxd6 f6 36. Rxe5 fxe5 37. Qxe5 $11) (34... f6 $142 {aiming for ...fxg5.} 35. g6 (35. Qxb4 $2 Ba6 $19) 35... dxc5 (35... Bxd5 36. Rd2 $11) 36. Rxe5 fxe5 37. Qxe5 Rh6) 35. Re3 $19 {[%emt 0:00:23] [#]} f6 $1 {[%emt 0:00:12]} 36. c6 {[%emt 0:00:58]} (36. g6 $142 dxc5 37. Rh1) 36... fxg5 $19 {[%emt 0:00:24]} 37. Qd4 $2 {[%emt 0:00:17]} (37. Qxg5 Qf6 38. Qxf6 gxf6 39. Re4) 37... Rh6 $19 {[%emt 0:01:10]} 38. Qa7 {[%emt 0:00:44]} Ra8 {[%emt 0:00:04]} 39. Qb6 {[%emt 0:00:29]} Qf6 {[%emt 0:01:52]} 40. Kc1 {[%emt 0:00:01]} h3 {[%emt 0:00:32]} 41. gxh3 {[%emt 0:03:11]} Nd3+ {[%emt 0:19:06]} 42. Kd2 {[%emt 0:01:47]} Qc3+ {[%emt 0:07:56]} 43. Kd1 {[%emt 0:00:06]} Rxh3 {[%emt 0:00:42]} 44. f6 {[%emt 0:09:48]} Qa1+ {[%emt 0:00:24]} 45. Kd2 {[%emt 0:00:01]} Rh2+ {[%emt 0:00:14]} 46. R3e2 {[%emt 0:00:06]} Rxe2+ {[%emt 0:00:07]} 47. Rxe2 {[%emt 0:00:03]} Qc1# {[%emt 0:00:04]} 0-1

[Event "52nd Rilton Cup 2024-25"]
[Site "Stockholm"]
[Date "2025.01.05"]
[Round "9.5"]
[White "Olsson, William"]
[Black "Bilovil, Bogdan"]
[Result "0-1"]
[ECO "E08"]
[WhiteElo "2369"]
[BlackElo "2452"]
[Annotator "TA"]
[PlyCount "60"]
[EventDate "2024.12.23"]
[EventType "swiss"]
[EventCountry "SWE"]
[SourceTitle "playchess.com"]
[Source "ChessBase"]
[SourceQuality "1"]
[TimeControl "40/5400+30:1800+30"]

{[%evp 12,59,27,22,26,25,32,16,15,3,8,-33,-38,-61,-58,-121,-106,-127,-120,-131,-137,-143,-145,-148,-122,-106,-128,-116,-111,-340,-314,-328,-347,-343,-317,-377,-224,-514,-453,-1044,-1061,-1000,-1001,-946,-941,-2385,-2403,-29998,-29999,-29999]} 1. d4 {[%emt 0:04:38]} d5 {[%emt 0:00:46]} 2. c4 {[%emt 0:00:07]} e6 {[%emt 0:00:08]} 3. Nf3 {[%emt 0:00:13]} Nf6 {[%emt 0:00:18]} 4. g3 {[%emt 0:00:07]} Be7 {[%emt 0:00:36]} 5. Bg2 {[%emt 0:00:05]} O-O {[%emt 0:00:12]} 6. O-O {[%emt 0:00:09]} Nbd7 {[%emt 0:00:05]} 7. Qc2 {[%emt 0:00:57]} a5 {[%emt 0:00:11]} 8. Rd1 {[%emt 0:06:47]} h6 {[%emt 0:00:08]} 9. Nbd2 {[%emt 0:03:13]} (9. Ne5 {with more complications.} c6 10. Bf4 Nh5 11. Be3) 9... c5 {[%emt 0:04:07] The position is equal.} 10. e4 {[%emt 0:04:02]} cxd4 {[%emt 0:14:47]} 11. Nxd4 {[%emt 0:06:05][%cal Re4d5]} e5 {[%emt 0:02:52]} 12. Nf5 {[%emt 0:00:20]} d4 {[%emt 0:00:38]} 13. f4 {[%emt 0:05:41]} ({White should try} 13. Nxe7+ $15 Qxe7 14. Nf3) 13... Bc5 $17 {[%emt 0:03:17]} 14. Qd3 {[%emt 0:00:15]} Ba7 {[%emt 0:01:27]} 15. Qf3 {[%emt 0:04:57]} exf4 {[%emt 0:26:31]} 16. gxf4 {[%emt 0:06:01]} Nc5 {[%emt 0:00:19] Threatens to win with ...d3.} 17. Bh3 {[%emt 0:00:22]} Bd7 {[%emt 0:22:08] ...d3 would now be deadly.} 18. Qg2 {[%emt 0:07:32] [#]} Nh5 {[%emt 0:02:45]} 19. Nxh6+ {[%emt 0:06:09]} Kh8 {[%emt 0:01:41]} 20. Bxd7 $2 {[%emt 0:00:51] White does not recover from this.} (20. Qf3 $17 {is the only way for White.} Qh4 21. Nf5 Bxf5 (21... Nxf4 $2 22. Nxh4 Nxh3+ 23. Kg2 $18) 22. Bxf5) 20... gxh6 $19 {[%emt 0:00:44]} 21. Qh3 {[%emt 0:06:38]} Qxd7 {[%emt 0:06:08]} 22. Qxh5 {[%emt 0:00:02]} Rg8+ {[%emt 0:00:19]} 23. Kf1 {[%emt 0:00:59]} Qc6 {[%emt 0:02:10]} (23... Rg7 $142 24. f5 Re8 (24... Rag8 $2 25. b4 $19)) 24. b3 $2 {[%emt 0:08:20]} (24. Nf3 Nxe4 25. Ne5 Nd2+ 26. Ke1 (26. Rxd2 Qh1+ 27. Ke2 Qe4+ 28. Kf1 Rg1+ 29. Kxg1 d3+ 30. Rf2 Qe1+ 31. Kg2 Qxf2+ 32. Kh3 Qf1+ 33. Kh4 Bf2+ 34. Kg4 Qe2+ 35. Kf5 Qxh5+ 36. Ke4 f5+ 37. Kxd3 Qd1+ 38. Bd2 Rd8+ 39. Kc3 Qxd2+ 40. Kb3 Qb4+ 41. Kc2 Rd2+ 42. Kc1 Qxb2#) (26. Bxd2 Rg1+ 27. Kxg1 d3+ 28. c5 Bxc5+) 26... Qe4+ 27. Qe2 Rg1+ 28. Kxd2) 24... Rg7 {[%emt 0:01:53]} ({Stronger than} 24... Nxe4 25. Nxe4 (25. Qxa5 {gets mated.} Nc5) 25... Qxe4 26. Qxh6+ (26. Qxa5 $2 {is a self mate.} Qf3+ 27. Ke1 Rg1+ 28. Kd2 Qxd1#) 26... Qh7 27. Qxh7+ Kxh7 28. Rd3 $16) 25. Ba3 {[%emt 0:04:38]} (25. Re1 $142 Rag8 26. Qf5) 25... Nxe4 {[%emt 0:02:19]} 26. Nf3 {[%emt 0:03:58]} Nf6 {[%emt 0:01:51]} 27. Qh3 {[%emt 0:01:04]} Ng4 {[%emt 0:00:50]} 28. Re1 {[%emt 0:01:33] Wards off Qe6} d3 {[%emt 0:01:00][%cal Oc6f3] ( -> ...Qxf3+!)} 29. Bb2 {[%emt 0:02:59] [#]} Qxf3+ $3 {[%emt 0:00:10][%mdl 512]} 30. Qxf3 {[%emt 0:00:03]} Nxh2# {[%emt 0:00:03] Weighted Error Value: White=1.08/Black=0.13 (very precise) .  Loses game:     	White=1     	---        Mistake:       	White=3     	Black=1      Inaccurate:     	White=1     	---        OK:         	White=5     	Black=9      Best:        	White=1     	Black=4} 0-1

[Event "52nd Rilton Cup 2024-25"]
[Site "Stockholm"]
[Date "2025.01.05"]
[Round "9.6"]
[White "Celik, Hasan Huseyin"]
[Black "Schmider, Niklas"]
[Result "1/2-1/2"]
[ECO "B53"]
[WhiteElo "2432"]
[BlackElo "2383"]
[Annotator "RC"]
[PlyCount "60"]
[EventDate "2024.12.23"]
[EventType "swiss"]
[EventCountry "SWE"]
[SourceTitle "playchess.com"]
[Source "ChessBase"]
[SourceQuality "1"]
[TimeControl "40/5400+30:1800+30"]

1. e4 {[%emt 0:11:50]} c5 {[%emt 0:00:31]} 2. Nf3 {[%emt 0:00:11]} d6 {[%emt 0:00:07]} 3. d4 {[%emt 0:01:44]} cxd4 {[%emt 0:00:07]} 4. Qxd4 {[%emt 0:00:11]} Nf6 {[%emt 0:04:36]} 5. Nc3 {[%emt 0:00:08]} a6 {[%emt 0:00:49]} 6. h3 {[%emt 0:02:19]} Nc6 {[%emt 0:01:22]} 7. Qe3 {[%emt 0:00:02]} d5 {[%emt 0:23:08]} 8. Nxd5 {[%emt 0:16:48]} Nxd5 {[%emt 0:00:39]} 9. exd5 {[%emt 0:00:07]} Qxd5 {[%emt 0:00:45]} 10. Bd3 {[%emt 0:01:36]} Bf5 {[%emt 0:02:06]} 11. Bxf5 {[%emt 0:00:22]} Qxf5 {[%emt 0:00:09]} 12. O-O {[%emt 0:00:08]} e6 {[%emt 0:22:15]} 13. Qb6 {[%emt 0:07:36]} Rb8 {[%emt 0:11:08]} 14. Be3 {[%emt 0:00:57]} Be7 {[%emt 0:01:24]} 15. Rfd1 {[%emt 0:04:33]} O-O {[%emt 0:08:29]} 16. c3 {[%emt 0:09:43]} Rfd8 {[%emt 0:06:56]} 17. a4 {[%emt 0:10:02]} Qc2 {[%emt 0:01:58]} 18. Nd4 {[%emt 0:02:03]} Nxd4 {[%emt 0:01:34]} 19. Rxd4 {[%emt 0:00:16]} Rxd4 {[%emt 0:02:16]} 20. Bxd4 {[%emt 0:01:02]} Qe4 {[%emt 0:01:18]} 21. Qc7 {[%emt 0:03:59]} Re8 {[%emt 0:00:06]} 22. a5 {[%emt 0:01:40]} Qd5 {[%emt 0:01:19]} 23. Qg3 {[%emt 0:09:20]} f6 {[%emt 0:00:39]} 24. Bb6 {[%emt 0:01:15]} Bd8 {[%emt 0:00:45]} 25. Qe3 {[%emt 0:01:46]} Bxb6 {[%emt 0:01:39]} 26. Qxb6 {[%emt 0:00:02]} Re7 {[%emt 0:00:25]} 27. b4 {[%emt 0:05:35]} Kf7 {[%emt 0:01:49]} 28. Qe3 {[%emt 0:02:05]} Rd7 {[%emt 0:01:04]} 29. Re1 {[%emt 0:01:05]} Rd6 {[%emt 0:01:17]} 30. Qa7 {[%emt 0:00:46]} Rd7 {[%emt 0:01:15]} 1/2-1/2

[Event "52nd Rilton Cup 2024-25"]
[Site "Stockholm"]
[Date "2025.01.05"]
[Round "9.7"]
[White "Kulaots, Kaido"]
[Black "Falkevall, Axel"]
[Result "1/2-1/2"]
[ECO "C79"]
[WhiteElo "2521"]
[BlackElo "2371"]
[Annotator "TA"]
[PlyCount "60"]
[EventDate "2024.12.23"]
[EventType "swiss"]
[EventCountry "SWE"]
[SourceTitle "playchess.com"]
[Source "ChessBase"]
[SourceQuality "1"]
[TimeControl "40/5400+30:1800+30"]

{[%evp 11,60,40,35,31,26,23,20,16,27,22,43,20,27,24,34,24,46,22,43,52,59,66,75,69,102,59,49,16,13,-8,-16,-23,0,0,0,-25,-24,-35,-26,-23,20,13,24,16,68,0,0,0,0,-15,-8]} 1. e4 {[%emt 0:00:10]} e5 {[%emt 0:00:09]} 2. Nf3 {[%emt 0:00:21]} Nc6 {[%emt 0:00:09]} 3. Bb5 {[%emt 0:00:04]} a6 {[%emt 0:00:07]} 4. Ba4 {[%emt 0:00:06]} Nf6 {[%emt 0:00:05]} 5. O-O {[%emt 0:00:08]} d6 {[%emt 0:01:07]} 6. Bxc6+ {[%emt 0:03:56]} bxc6 {[%emt 0:00:08]} 7. Re1 {[%emt 0:00:06]} Bg4 {[%emt 0:04:05]} 8. h3 {[%emt 0:02:58]} Bxf3 {[%emt 0:04:27]} 9. Qxf3 {[%emt 0:00:47][%cal Od2d4]} Nd7 {[%emt 0:02:15]} 10. Na3 {[%emt 0:26:24]} g6 {[%emt 0:08:49]} 11. Nc4 {[%emt 0:14:22]} Bg7 {[%emt 0:02:38]} 12. Na5 {[%emt 0:03:06]} c5 {[%emt 0:02:20]} 13. a3 {[%emt 0:00:14]} O-O {[%emt 0:02:54]} 14. b4 {[%emt 0:04:45]} cxb4 {[%emt 0:05:33]} 15. axb4 {[%emt 0:00:18]} f5 {[%emt 0:01:58][%cal Bf7f5,Bf5f4][%mdl 32]} 16. d3 {[%emt 0:05:07][%cal Bd2d3,Bd3d4][%mdl 32]} Kh8 {[%emt 0:04:15]} 17. Bd2 {[%emt 0:07:43]} f4 {[%emt 0:06:46]} 18. Rad1 {[%emt 0:04:20] White is more active.} Qe8 {[%emt 0:04:39]} 19. Bc1 {[%emt 0:04:34]} g5 {[%emt 0:05:21]} 20. c3 {[%emt 0:00:17]} h5 {[%emt 0:02:18]} 21. d4 {[%emt 0:00:40]} Nf6 {[%emt 0:11:55]} 22. Qd3 {[%emt 0:08:44]} g4 {[%emt 0:02:30]} 23. Nc4 {[%emt 0:05:52]} Nd7 {[%emt 0:03:29]} 24. hxg4 {[%emt 0:02:47]} hxg4 {[%emt 0:02:28]} 25. f3 {[%emt 0:00:03]} Bf6 {[%emt 0:02:28]} (25... gxf3 $5 26. Qxf3 Qe6 $11) 26. fxg4 {[%emt 0:01:30]} Rf7 {[%emt 0:03:13]} 27. Rf1 {[%emt 0:01:12]} Qg8 {[%emt 0:03:06]} ({Black should try} 27... Qe6 $11) 28. Rf3 {[%emt 0:01:11]} (28. dxe5 $14 Nxe5 29. Qe2) 28... Qxg4 $11 {[%emt 0:03:05] And now ...Rg8 would win.} 29. Rh3+ {[%emt 0:00:11]} Rh7 {[%emt 0:00:51]} 30. Rxh7+ {[%emt 0:01:35]} Kxh7 {[%emt 0:00:19]} 1/2-1/2